[Event "5th Sharjah Masters 2022"]
[Site "Sharjah"]
[Date "2022.05.23"]
[Round "3.37"]
[White "Begmuratov, Khumoyun"]
[Black "Adly, Ahmed"]
[Result "0-1"]
[ECO "B27"]
[WhiteElo "2384"]
[BlackElo "2596"]
[Annotator "TA"]
[PlyCount "130"]
[EventDate "2022.05.21"]
[EventType "swiss"]
[EventCountry "UAE"]
[SourceTitle "playchess.com"]
[Source "ChessBase"]
[SourceQuality "1"]
[TimeControl "5400+30"]

{[%evp 9,130,93,115,118,143,100,106,80,99,80,110,134,120,115,115,88,88,87,141,133,139,129,115,52,53,31,72,34,95,144,146,135,124,116,128,45,120,120,137,92,96,87,79,88,82,78,92,91,90,91,120,58,68,0,43,52,58,56,61,61,53,0,50,-50,-47,-47,-50,-116,-116,-109,-115,-118,-116,-116,-109,-120,-119,-201,-196,-235,-257,-282,-268,-329,-331,-337,-315,-304,-314,-364,-351,-755,-746,-814,-808,-1079,-1075,-1341,-1338,-6041,-6174,-5139,-1740,-5089,-5422,-29972,-29972,-29973,-29970,-29970,-29971,-29968,-29965,-29983,-29984,-29984,-29985,-29985,-29986,-29986,-29987,-29987,-29988]} 1. e4 {[%emt 0:00:06]} c5 {[%emt 0:00:02]} 2. c3 {[%emt 0:00:56]} g6 {[%emt 0:02:58]} 3. d4 {[%emt 0:01:11]} Bg7 {[%emt 0:00:17]} 4. Nf3 {[%emt 0:02:55]} Nf6 {[%emt 0:01:43]} 5. e5 {[%emt 0:05:09]} Nd5 {[%emt 0:00:23]} 6. dxc5 {[%emt 0:02:38] B27: Sicilian: 2 Nf3, unusual Black 2nd moves.} Nc7 {[%emt 0:00:08]} 7. Bc4 {[%emt 0:00:46]} Nc6 {[%emt 0:00:10]} 8. Bf4 {[%emt 0:01:05] [#] White is better.} Na5 $146 {[%emt 0:04:02]} ({Predecessor:} 8... O-O 9. O-O Ne6 10. Bxe6 fxe6 11. Bg3 Qc7 12. Re1 b6 13. cxb6 axb6 14. b4 Bb7 {0-1 (34) Gomis,R (1697)-Becker,A (2133) Winterberg 2004}) 9. Bd5 {[%emt 0:20:37]} Nxd5 {[%emt 0:05:32]} 10. Qxd5 {[%emt 0:00:02]} Nc6 {[%emt 0:00:22][%cal Ba5c6,Bc6d8,Bd8e6][%mdl 32]} 11. O-O {[%emt 0:15:44]} b6 {[%emt 0:07:38]} 12. cxb6 {[%emt 0:17:52]} (12. Rd1 {looks sharper.} O-O 13. Nbd2 Ba6 14. cxb6 Qxb6 15. Rab1) 12... Qxb6 {[%emt 0:00:43]} 13. Qd2 {[%emt 0:00:24]} h6 {[%emt 0:02:59]} (13... Bb7 $142) 14. Re1 {[%emt 0:01:59]} Nd8 {[%emt 0:03:07]} 15. c4 {[%emt 0:05:36]} Bb7 {[%emt 0:01:21]} 16. Re3 {[%emt 0:01:56]} (16. Nc3 $16) 16... Ne6 $14 {[%emt 0:00:47]} 17. Bg3 {[%emt 0:00:41]} (17. Rb3 $5 {[%cal Rb3b6]} Qc7 18. Na3 $14) 17... Qc6 {[%emt 0:01:11]} 18. Qd3 {[%emt 0:04:11]} g5 {[%emt 0:04:53]} (18... Rc8 $14) 19. Nc3 $16 {[%emt 0:01:35]} h5 {[%emt 0:00:26] ...h4 is the strong threat.} 20. h4 $1 {[%emt 0:00:27]} Bh6 {[%emt 0:01:19]} 21. Re2 $1 {[%emt 0:01:08]} Nc5 {[%emt 0:23:54]} 22. Qf5 {[%emt 0:01:24]} (22. Qd1 $1 $16) 22... Qe6 {[%emt 0:00:46] Prevents Nd5.} ({Black should play} 22... Ne6 $1 $14) 23. Qxe6 {[%emt 0:00:13]} Nxe6 {[%emt 0:00:05]} 24. Nd5 {[%emt 0:05:27]} Rc8 {[%emt 0:01:20]} 25. b3 {[%emt 0:00:23]} g4 {[%emt 0:01:48]} 26. Ne1 {[%emt 0:00:39]} Nd4 {[%emt 0:00:22]} 27. Re4 {[%emt 0:00:08]} Nf5 {[%emt 0:00:11]} 28. Rd1 {[%emt 0:00:45]} Bg7 {[%emt 0:05:46]} 29. Re2 $1 {[%emt 0:00:29]} e6 {[%emt 0:05:08]} 30. Nf4 {[%emt 0:04:16]} (30. Nf6+ $16 Bxf6 31. exf6) 30... Bf8 $14 {[%emt 0:00:25]} 31. Red2 {[%emt 0:01:53]} (31. Nc2 $1 $14) 31... Rc7 {[%emt 0:01:13]} 32. Nc2 {[%emt 0:00:39]} Bc5 {[%emt 0:00:32]} 33. Kh2 {[%emt 0:00:33]} a6 {[%emt 0:00:18]} 34. Rh1 {[%emt 0:02:17]} Be7 {[%emt 0:03:30]} 35. Kg1 {[%emt 0:00:01]} (35. Ne3 $14) 35... Be4 {[%emt 0:00:08]} ({Better is} 35... Bc5 $11 36. Kh2 Bc6) 36. Ne3 {[%emt 0:01:25]} (36. Re2 $14 Bc5 37. Kh2 (37. Rxe4 $2 Nxg3 38. Re2 Nxe2+ 39. Nxe2 d6 $19)) 36... Nxg3 $15 {[%emt 0:00:39]} 37. fxg3 {[%emt 0:00:01]} Rc5 {[%emt 0:00:02]} 38. Nd3 {[%emt 0:01:00]} (38. Kh2 $15) 38... Bxd3 $17 {[%emt 0:00:23]} 39. Rxd3 {[%emt 0:00:01]} Rxe5 {[%emt 0:00:02]} 40. Kf2 {[%emt 0:00:01]} Bc5 {[%emt 0:00:58]} 41. Ke2 {[%emt 0:00:06]} Ke7 {[%emt 0:01:48]} 42. Kd2 {[%emt 0:00:01]} Rd8 {[%emt 0:00:29]} 43. Rf1 {[%emt 0:01:09]} (43. Rc1 $17) 43... d5 $19 {[%emt 0:01:37]} 44. Nc2 {[%emt 0:00:35]} Rd6 {[%emt 0:01:43]} 45. Rf4 {[%emt 0:01:07]} f5 {[%emt 0:00:46]} 46. b4 {[%emt 0:01:25]} dxc4 {[%emt 0:00:43]} 47. Rxc4 {[%emt 0:00:04] [#]} Rxd3+ $1 {[%emt 0:00:22]} 48. Kxd3 {[%emt 0:00:01][%mdl 4096] Endgame [#] KRB-KRN} Bf2 {[%emt 0:00:08]} 49. a4 {[%emt 0:01:17]} Kd7 {[%emt 0:00:33] Inhibits Rc6.} ({Wrong is} 49... Bxg3 $2 50. Nd4 Rd5 51. Ke2 $19) 50. Na1 $2 {[%emt 0:00:41]} (50. Rc3 Bxg3 51. Nd4) 50... Re3+ {[%emt 0:00:30]} 51. Kc2 {[%emt 0:00:07]} Rxg3 {[%emt 0:00:11]} 52. b5 {[%emt 0:00:17]} axb5 {[%emt 0:00:20]} 53. axb5 {[%emt 0:00:01]} Rxg2 {[%emt 0:00:08]} 54. Nb3 {[%emt 0:00:10]} g3 {[%emt 0:00:30] ( -> ...Rh2)} 55. Kd3 {[%emt 0:00:14]} Bb6 {[%emt 0:00:20]} (55... Rh2 $142 56. Ke2 Bb6+ 57. Kf3 g2) 56. Rc6 {[%emt 0:00:18] [#]} Rb2 $1 {[%emt 0:00:07]} 57. Rxb6 {[%emt 0:00:17]} (57. Nd4 g2) 57... Rxb3+ {[%emt 0:00:09] KR-KR. Black mates.} 58. Kc4 {[%emt 0:00:00]} Re3 {[%emt 0:00:37]} 59. Rb7+ {[%emt 0:00:21]} Kd6 {[%emt 0:00:05]} 60. b6 {[%emt 0:00:16]} Kc6 {[%emt 0:00:22]} 61. Rb8 {[%emt 0:00:18]} g2 {[%emt 0:00:10]} 62. Rg8 {[%emt 0:00:10]} Re4+ {[%emt 0:00:05]} 63. Kd3 {[%emt 0:00:01]} Rg4 {[%emt 0:00:05]} 64. Rc8+ {[%emt 0:00:06]} Kxb6 {[%emt 0:00:09]} 65. Rb8+ {[%emt 0:00:02]} Kc7 {[%emt 0:23:32] What a bad dream for White.  Weighted Error Value: White=0.65/Black=0.15 (very precise)} 0-1

[Event "5th Sharjah Masters 2022"]
[Site "Sharjah"]
[Date "2022.05.23"]
[Round "3.38"]
[White "Gharibyan, Mamikon"]
[Black "Injac, Teodora"]
[Result "1-0"]
[ECO "E51"]
[WhiteElo "2487"]
[BlackElo "2384"]
[Annotator "TA"]
[PlyCount "133"]
[EventDate "2022.05.21"]
[EventType "swiss"]
[EventCountry "UAE"]
[SourceTitle "playchess.com"]
[Source "ChessBase"]
[SourceQuality "1"]
[TimeControl "5400+30"]

{[%evp 11,133,0,4,0,0,0,10,17,10,16,8,8,9,9,10,10,9,7,7,0,6,13,52,0,72,71,47,54,62,51,83,81,94,0,30,30,36,22,33,36,31,0,31,0,35,0,18,0,15,0,0,0,0,0,0,0,42,25,20,17,41,42,42,30,65,25,54,49,60,81,127,58,65,71,63,65,64,64,63,63,70,68,241,65,275,51,55,56,208,237,237,230,204,203,207,210,210,201,181,184,172,96,100,83,86,38,1367,478,984,594,495,0,1279,1255,2128,1595,29981,29982,29982,29983,29983,29984,29982,29983]} 1. d4 {[%emt 0:00:04]} Nf6 {[%emt 0:00:10]} 2. c4 {[%emt 0:00:09]} e6 {[%emt 0:00:06]} 3. Nf3 {[%emt 0:00:36]} d5 {[%emt 0:00:07]} 4. Nc3 {[%emt 0:00:11]} Bb4 {[%emt 0:00:25]} 5. e3 {[%emt 0:04:27]} O-O {[%emt 0:01:15]} 6. Bd2 {[%emt 0:00:06]} Nbd7 {[%emt 0:12:03]} 7. Rc1 {[%emt 0:12:05] now supersedes 7.Bd3. E51: Nimzo-Indian: Rubinstein: 4...0-0 5 Nf3 d5.} c6 {[%emt 0:01:45]} 8. Bd3 {[%emt 0:03:41]} Qe7 {[%emt 0:07:15]} 9. O-O {[%emt 0:06:42] The position is equal.} dxc4 {[%emt 0:02:27]} 10. Bxc4 {[%emt 0:00:06]} e5 {[%emt 0:00:25]} 11. Qc2 {[%emt 0:03:21]} Bxc3 {[%emt 0:11:55]} 12. Bxc3 {[%emt 0:04:09][%cal Rd4e5]} ({Much weaker is} 12. bxc3 e4 13. Ne1 b5 $11) 12... e4 {[%emt 0:00:28]} 13. Ne5 {[%emt 0:01:49]} Nb6 {[%emt 0:01:48]} 14. Be2 $36 {[%emt 0:01:40][%mdl 2048] White has some pressure.} Bf5 {[%emt 0:09:29] [#]} 15. Bd2 $146 {[%emt 0:07:59]} ({Predecessor:} 15. Qd2 Nfd5 16. Rfe1 f6 17. Nc4 Be6 18. b3 f5 19. Bb2 f4 20. Ba3 Qg5 21. Bf1 {½-½ (114) Zakhartsov,V (2506)-Predke,A (2683) Cheboksary 2021}) 15... Nfd5 {[%emt 0:09:14]} 16. a4 {[%emt 0:06:30]} a5 {[%emt 0:03:58]} 17. Qd1 {[%emt 0:09:32]} ({Better is} 17. g4 $14 Bc8 18. Qxe4) 17... Nb4 {[%emt 0:03:40]} (17... Nd7 $11) 18. Rc5 $16 {[%emt 0:03:19][%cal Oe5c6]} N6d5 {[%emt 0:02:41]} 19. Bxb4 {[%emt 0:00:39]} axb4 {[%emt 0:01:01]} 20. a5 {[%emt 0:00:52][%cal Oa5a6] Hoping for a6!} f6 {[%emt 0:03:20]} 21. Nc4 {[%emt 0:00:19]} Be6 {[%emt 0:01:22]} 22. f3 {[%emt 0:08:42]} (22. Qc2 $16) 22... Bf5 {[%emt 0:02:13]} 23. f4 {[%emt 0:01:06]} Be6 {[%emt 0:01:38]} 24. Qe1 {[%emt 0:06:04]} Ra7 {[%emt 0:01:36]} 25. Qg3 {[%emt 0:02:05]} Rfa8 {[%emt 0:05:36]} 26. Rc1 {[%emt 0:00:14][%cal Of4f5]} Kh8 {[%emt 0:03:36]} 27. Qe1 {[%emt 0:01:10]} Qd8 {[%emt 0:00:46]} 28. Bd1 {[%emt 0:01:39][%cal Be2d1,Bd1c2,Bc2e4][%mdl 32]} Qe7 {[%emt 0:06:46]} 29. Bc2 {[%emt 0:01:24]} Bf7 {[%emt 0:00:18]} 30. Nb6 {[%emt 0:06:33]} Nxb6 {[%emt 0:00:30]} 31. axb6 {[%emt 0:00:04]} Ra6 {[%emt 0:01:11]} 32. Qxb4 {[%emt 0:00:34]} Qd8 {[%emt 0:00:14]} 33. Qc3 {[%emt 0:05:48]} (33. Bxe4 $2 Qe8 34. Bf3 (34. d5 $2 Ra4 $19) 34... Qxe3+ 35. Kh1 Ra1 $17) 33... Rxb6 {[%emt 0:00:24]} 34. Bxe4 {[%emt 0:00:34]} Rb3 $1 {[%emt 0:01:42]} 35. Qd2 {[%emt 0:02:46]} Qe7 {[%emt 0:00:19]} 36. Bd3 {[%emt 0:00:56]} Bd5 {[%emt 0:02:27]} 37. R5c3 {[%emt 0:00:32]} Rb4 {[%emt 0:01:23][%cal Ob4b2]} 38. Re1 {[%emt 0:00:29]} Ra2 {[%emt 0:02:03]} 39. Rc2 {[%emt 0:00:15][%cal Ob2b3]} Bb3 {[%emt 0:01:49]} 40. Rc5 {[%emt 0:00:20]} Rb6 {[%emt 0:00:28]} (40... Raa4 $142) 41. Ra5 {[%emt 0:00:28]} (41. Qc3 $1 $16) 41... Qb4 {[%emt 0:00:31]} 42. Qxb4 {[%emt 0:00:17]} Rxb4 {[%emt 0:00:01]} 43. Rxa2 {[%emt 0:00:53] White is more active.} Bxa2 $14 {[%emt 0:00:01][%mdl 4096] Endgame KRB-KRB} 44. Re2 {[%emt 0:00:26][%cal Ob2b3] Strongly threatening b3!} g6 {[%emt 0:00:37]} 45. g4 {[%emt 0:00:46]} Kg7 {[%emt 0:00:36]} 46. Kf2 {[%emt 0:00:01][%cal Ob2b3] aiming for b3!} Kf8 $2 {[%emt 0:00:30]} (46... Bc4 $14 47. Bxc4 Rxc4) 47. h4 $2 {[%emt 0:00:39]} (47. b3 $1 $18 Rxb3 48. Bc4 (48. Rxa2 Rxd3 49. Rb2 b5 $16)) 47... Ke7 $2 {[%emt 0:00:21]} (47... Be6 $14) 48. h5 $2 {[%emt 0:00:55]} (48. b3 $1 $18) 48... gxh5 {[%emt 0:00:11]} 49. gxh5 {[%emt 0:00:03]} h6 {[%emt 0:00:17] [#]} (49... Be6 $1 $14) 50. b3 $1 $18 {[%emt 0:00:46]} Bxb3 {[%emt 0:01:37]} 51. Rb2 {[%emt 0:00:01] And now Ke1 would win.} Kd6 {[%emt 0:00:44]} 52. Bc2 {[%emt 0:00:46]} Bxc2 {[%emt 0:00:15]} 53. Rxb4 {[%emt 0:00:05] KR-KB} b5 {[%emt 0:00:07]} 54. Rb2 {[%emt 0:01:07]} Be4 {[%emt 0:00:03]} 55. Ke2 {[%emt 0:00:42] Ra2 is the strong threat.} Kd5 {[%emt 0:00:53]} 56. Kd2 {[%emt 0:00:33]} ({White should try} 56. Rb4 $18) 56... Kc4 $16 {[%emt 0:00:20]} 57. Ra2 {[%emt 0:00:23]} b4 {[%emt 0:00:42] [#]} 58. Ra8 {[%emt 0:00:37]} ({White should play} 58. Ra4 $1 $16) 58... Kb3 $2 {[%emt 0:01:13][%mdl 8192]} (58... b3 $14 59. Rb8 Bf3) 59. Rb8 {[%emt 0:00:26]} (59. Re8 $142 Bf3 60. Rh8) 59... Ka3 {[%emt 0:00:30]} (59... Kc4 $142 60. Re8 f5) 60. Kc1 {[%emt 0:00:29]} Kb3 {[%emt 0:00:01]} 61. Kd2 {[%emt 0:00:32]} ({Not} 61. Rh8 Kc3 $16) (61. Re8 $142 Bf3 62. e4) 61... Ka3 $1 $18 {[%emt 0:00:01]} 62. Re8 {[%emt 0:00:31]} f5 {[%emt 0:00:51]} 63. Rh8 {[%emt 0:00:28]} Ka2 {[%emt 0:00:44]} 64. Rxh6 {[%emt 0:00:32] White mates.} b3 {[%emt 0:00:41]} 65. Rh8 {[%emt 0:00:19]} b2 {[%emt 0:00:39]} 66. Ra8+ {[%emt 0:00:32]} Kb3 {[%emt 0:00:04]} 67. Rb8+ {[%emt 0:00:04] Weighted Error Value: White=0.46/Black=0.28 (precise)} 1-0

[Event "5th Sharjah Masters 2022"]
[Site "Sharjah"]
[Date "2022.05.23"]
[Round "3.39"]
[White "Mammadzada, Gunay"]
[Black "Farahat, Ali"]
[Result "1/2-1/2"]
[ECO "C89"]
[WhiteElo "2454"]
[BlackElo "2381"]
[Annotator "TA"]
[PlyCount "58"]
[EventDate "2022.05.21"]
[EventType "swiss"]
[EventCountry "UAE"]
[SourceTitle "playchess.com"]
[Source "ChessBase"]
[SourceQuality "1"]
[TimeControl "5400+30"]

{[%evp 26,58,25,21,43,33,42,35,47,39,35,18,16,16,10,8,13,17,19,15,14,10,15,0,0,-18,-21,-20,0,0,0,-14,0,-3,0]} 1. e4 {[%emt 0:00:04]} e5 {[%emt 0:00:05]} 2. Nf3 {[%emt 0:00:09]} Nc6 {[%emt 0:00:06]} 3. Bb5 {[%emt 0:00:06]} a6 {[%emt 0:00:17]} 4. Ba4 {[%emt 0:00:19]} Nf6 {[%emt 0:00:15]} 5. O-O {[%emt 0:00:06]} Be7 {[%emt 0:00:20]} 6. Re1 {[%emt 0:00:11]} b5 {[%emt 0:00:22]} 7. Bb3 {[%emt 0:00:03]} O-O {[%emt 0:00:58]} 8. c3 {[%emt 0:00:26]} d5 {[%emt 0:00:32]} 9. exd5 {[%emt 0:00:45]} Nxd5 {[%emt 0:00:07]} 10. Nxe5 {[%emt 0:00:26]} Nxe5 {[%emt 0:00:12]} 11. Rxe5 {[%emt 0:00:03]} c6 {[%emt 0:00:33]} 12. d3 {[%emt 0:00:14]} Bd6 {[%emt 0:00:45]} 13. Re1 {[%emt 0:00:28]} Bf5 {[%emt 0:00:32]} 14. Qf3 {[%emt 0:03:08]} Qh4 {[%emt 0:02:15] C89: Closed Ruy Lopez: Marshall Attack.} 15. g3 {[%emt 0:03:17]} ({Much worse is} 15. Bxd5 Bxh2+ 16. Kf1 Bg4 $17) 15... Qh3 {[%emt 0:00:25]} 16. Bxd5 {[%emt 0:12:00]} cxd5 {[%emt 0:00:09] White is slightly better.} 17. Be3 {[%emt 0:01:44]} Bxd3 {[%emt 0:09:11] [#] ...Be4 is the strong threat.} 18. Nd2 {[%emt 0:04:07][%cal Bb1d2,Bd2b3,Bb3d4][%mdl 32] Inhibits Be4.} Qf5 {[%emt 0:14:48] The position is equal.} 19. Qxf5 {[%emt 0:01:35]} Bxf5 {[%emt 0:00:03] A strong pair of Bishops.} 20. Nb3 {[%emt 0:00:09] [#]} Rfc8 $146 {[%emt 0:04:47] Against Bc5} ({Predecessor:} 20... Rfe8 21. Bc5 Bc7 22. f3 h5 23. Kf2 Rac8 24. Rxe8+ Rxe8 25. Rd1 Be6 26. Nd4 Rc8 {1-0 (47) Gadimbayli,A (2414)-Kravtsiv,M (2628) Konya 2019}) 21. Nd4 {[%emt 0:20:04]} Bd7 {[%emt 0:02:38]} 22. a3 {[%emt 0:12:50]} a5 {[%emt 0:03:15]} 23. Bf4 {[%emt 0:01:57]} Bc5 {[%emt 0:06:40]} 24. Re5 {[%emt 0:09:16]} Bxd4 {[%emt 0:02:06]} 25. Rxd5 {[%emt 0:03:22] [#]} Bxc3 $1 {[%emt 0:01:04]} 26. bxc3 {[%emt 0:00:05]} Bc6 {[%emt 0:02:17]} 27. Rc5 {[%emt 0:27:06]} Bd7 {[%emt 0:01:25]} 28. Rd5 {[%emt 0:00:00]} Bc6 {[%emt 0:00:10]} 29. Rc5 {[%emt 0:01:00]} Bd7 {[%emt 0:00:06] Weighted Error Value: White=0.05 (flawless) /Black=0.06 (flawless)} 1/2-1/2

[Event "5th Sharjah Masters 2022"]
[Site "Sharjah"]
[Date "2022.05.23"]
[Round "3.40"]
[White "Hesham, Abdelrahman"]
[Black "Ammar, Sedrani"]
[Result "1-0"]
[ECO "B12"]
[WhiteElo "2412"]
[BlackElo "2255"]
[Annotator "TA"]
[PlyCount "79"]
[EventDate "2022.05.21"]
[EventType "swiss"]
[EventCountry "UAE"]
[SourceTitle "playchess.com"]
[Source "ChessBase"]
[SourceQuality "1"]
[TimeControl "5400+30"]

{[%evp 12,79,21,20,20,20,21,23,36,28,28,28,52,29,27,27,30,39,24,0,0,0,18,0,100,88,98,95,235,212,286,291,329,328,323,324,318,318,344,345,430,358,522,504,605,336,323,358,333,334,272,0,0,0,0,0,0,0,108,125,127,137,543,455,2025,1753,2145,2072,29984,29984]} 1. e4 {[%emt 0:00:03]} c6 {[%emt 0:00:06][%cal Bc7c6,Bc6c5][%mdl 32]} 2. d4 {[%emt 0:00:04]} d5 {[%emt 0:00:05]} 3. e5 {[%emt 0:00:04]} Bf5 {[%emt 0:00:30]} 4. Nf3 {[%emt 0:00:16]} e6 {[%emt 0:00:50]} 5. Be2 {[%emt 0:00:04]} c5 {[%emt 0:00:51]} 6. Be3 {[%emt 0:00:31]} Qb6 {[%emt 0:16:54]} 7. Nc3 {[%emt 0:00:48]} c4 {[%emt 0:02:56] B12: Caro-Kann: Advance Variation.} (7... Qxb2 8. Nb5 $16) 8. Rb1 {[%emt 0:00:54]} Bb4 {[%emt 0:02:09]} 9. O-O {[%emt 0:02:08]} Bxc3 {[%emt 0:00:54] White has an edge.} 10. bxc3 {[%emt 0:00:07]} Qc7 {[%emt 0:00:01]} 11. Nh4 {[%emt 0:26:03]} Ne7 {[%emt 0:05:36]} 12. g4 {[%emt 0:01:30]} Bg6 {[%emt 0:01:41]} 13. f4 {[%emt 0:00:18]} Be4 {[%emt 0:11:05]} 14. f5 $36 {[%emt 0:00:54][%cal Oe2d3][%mdl 2048] White fights for an advantage.} Nbc6 {[%emt 0:02:00]} 15. f6 {[%emt 0:01:10]} gxf6 {[%emt 0:03:15]} 16. Rxf6 {[%emt 0:00:20]} Rg8 {[%emt 0:01:52]} 17. Qd2 {[%emt 0:02:44] [#]} Ng6 $146 {[%emt 0:02:12] [#]} (17... Qa5 $11 {keeps the balance.}) ({Predecessor:} 17... Qa5 18. Rxb7 Rb8 19. Rxb8+ Nxb8 20. Rf1 Qxa2 21. Bd1 Nbc6 22. Ng2 Ng6 23. Qf2 Nd8 24. Bg5 Qa3 25. Qd2 Nc6 26. Qf2 Nd8 27. Qd2 Nc6 28. Qf2 {½-½ (29) Brkic,A (2600)-Ruck,R (2530) Mali Losinj 2019}) 18. Nf3 $1 $16 {[%emt 0:01:18]} Bxf3 {[%emt 0:04:56]} 19. Rxf3 {[%emt 0:01:56][%cal Bf6f3,Bf3g3,Bg3g2][%mdl 32]} h5 {[%emt 0:05:46]} (19... O-O-O $16) 20. gxh5 $18 {[%emt 0:04:49]} Nh4+ {[%emt 0:08:13]} 21. Rg3 {[%emt 0:00:27]} O-O-O {[%emt 0:00:42][%cal Of7f6]} 22. Bg5 {[%emt 0:00:22]} Nf5 {[%emt 0:00:10]} 23. Rg2 {[%emt 0:00:46]} ({Less strong is} 23. Bxd8 Nxg3 24. hxg3 (24. Bxc7 $2 Ne4+ 25. Bg4 Nxd2 $19) 24... Nxd8 $14) 23... Nce7 {[%emt 0:03:15]} 24. Bg4 {[%emt 0:10:06]} Rdf8 {[%emt 0:02:11]} 25. Bf6 {[%emt 0:00:55] Prevents Rh8.} Qa5 {[%emt 0:08:21]} 26. Kh1 {[%emt 0:07:00]} Qxa2 {[%emt 0:02:34]} (26... Rh8 $142 27. Rf1 a6 28. Bxe7 Nxe7 29. Rxf7 Rxf7 30. Bxe6+ Kb8 31. Bxf7 Qxa2) 27. Rbg1 {[%emt 0:00:21][%cal Bb1g1,Bg1g2,Bg2f2][%mdl 32]} Kc7 {[%emt 0:02:45]} 28. Bxf5 {[%emt 0:16:00]} Rxg2 {[%emt 0:00:10]} 29. Rxg2 {[%emt 0:00:06]} Nxf5 {[%emt 0:00:05]} 30. h4 {[%emt 0:00:14] Strongly threatening h6.} Qb1+ {[%emt 0:03:11]} 31. Kh2 $2 {[%emt 0:01:42]} (31. Rg1 $18 Qb2 32. h6 Nxh6 33. Qxh6 Qxc3 34. Rg2 Qh3+ 35. Kg1) 31... Qf1 $11 {[%emt 0:01:03]} 32. Rf2 {[%emt 0:05:05] Against Qf3} Qb1 {[%emt 0:00:04]} 33. h6 {[%emt 0:00:15][%cal Bh5h6,Bh6h7][%mdl 32]} Rg8 {[%emt 0:00:15] ( -> ...Qg1+)} 34. Bg7 {[%emt 0:00:24]} Kc6 {[%emt 0:03:16] [#]} (34... a5 $11) 35. Rxf5 $1 $16 {[%emt 0:15:42][%mdl 512]} exf5 {[%emt 0:00:36]} 36. Qf2 {[%emt 0:00:02] Black must now prevent h7.} ({But not} 36. h7 $2 Rxg7 37. Qh6+ Rg6 38. Qxg6+ fxg6 $19) 36... Qb6 $2 {[%emt 0:04:32][%mdl 8192]} (36... Rb8 $16) 37. h7 {[%emt 0:00:13]} Qd8 {[%emt 0:00:01]} (37... Re8 $142 38. h8=Q Rxh8) 38. Bf6 $18 {[%emt 0:00:44]} Qf8 {[%emt 0:02:08]} 39. Qxf5 {[%emt 0:01:30] aiming for h5.} a5 {[%emt 0:01:21]} 40. e6 {[%emt 0:01:38] Weighted Error Value: White=0.22 (precise) /Black=0.81} 1-0

[Event "5th Sharjah Masters 2022"]
[Site "Sharjah"]
[Date "2022.05.24"]
[Round "4.1"]
[White "Gupta, Abhijeet"]
[Black "Iskandarov, Misratdin"]
[Result "1-0"]
[ECO "E71"]
[WhiteElo "2606"]
[BlackElo "2601"]
[Annotator "TA"]
[PlyCount "67"]
[EventDate "2022.05.21"]
[EventType "swiss"]
[EventCountry "UAE"]
[SourceTitle "playchess.com"]
[Source "ChessBase"]
[SourceQuality "1"]
[TimeControl "5400+30"]

{[%evp 13,67,31,37,29,35,40,46,49,103,113,114,106,101,98,121,115,121,125,176,177,282,247,272,242,287,273,344,312,337,337,742,715,745,860,831,650,669,666,649,505,501,498,472,466,29974,251,5173,5165,29991,29992,29992,29993,29993,97,29994,29995]} 1. d4 {[%emt 0:00:04]} Nf6 {[%emt 0:00:14]} 2. c4 {[%emt 0:00:10]} g6 {[%emt 0:00:22]} 3. Nc3 {[%emt 0:00:18]} Bg7 {[%emt 0:00:15]} 4. e4 {[%emt 0:00:15]} d6 {[%emt 0:00:07]} 5. h3 {[%emt 0:00:19]} O-O {[%emt 0:00:24]} 6. Be3 {[%emt 0:00:16]} e5 {[%emt 0:01:03]} 7. d5 {[%emt 0:00:18]} Na6 {[%emt 0:00:06]} 8. g4 {[%emt 0:00:54] E71: King's Indian: 4 e4 d6 5 h3.} Nc5 {[%emt 0:00:06]} 9. f3 {[%emt 0:02:23]} a5 {[%emt 0:00:42]} 10. Qd2 {[%emt 0:00:23] White is slightly better.} Nfd7 {[%emt 0:16:22]} (10... c6 $14) 11. h4 {[%emt 0:07:42]} f5 {[%emt 0:00:42]} 12. gxf5 {[%emt 0:01:00]} gxf5 {[%emt 0:00:06]} 13. exf5 {[%emt 0:00:04] [#]} Rxf5 $146 {[%emt 0:00:12][%cal Oe5e4]} ({Predecessor:} 13... Nf6 14. h5 Bxf5 15. h6 Bh8 16. Bxc5 dxc5 17. Qg5+ Bg6 18. Bh3 Re8 19. Bf5 Kf7 {1-0 (36) Teplyi,I (2404)-Rostgaard,T (2416) Odense 2018}) 14. O-O-O {[%emt 0:00:30]} a4 {[%emt 0:18:04]} 15. Nh3 {[%emt 0:07:36][%cal Bg1h3,Bh3g5,Bg5h7][%mdl 32]} Kh8 {[%emt 0:22:51]} (15... Rxf3 $16 16. Ng5 Rf8) 16. Ng5 $18 {[%emt 0:03:14]} Qf8 {[%emt 0:02:41]} (16... e4 {is a better defense.}) 17. Rg1 {[%emt 0:04:15]} Nb6 {[%emt 0:13:49]} 18. Bxc5 {[%emt 0:05:40]} dxc5 {[%emt 0:00:06]} 19. Bd3 {[%emt 0:00:10]} Rf4 {[%emt 0:02:01]} 20. Nxh7 {[%emt 0:02:28]} Qe7 {[%emt 0:01:56]} 21. Ng5 {[%emt 0:06:57]} Nxc4 $2 {[%emt 0:02:21]} (21... Bd7 22. Nce4 a3) 22. Bxc4 {[%emt 0:04:09]} Rxc4 {[%emt 0:00:06]} 23. Qd3 {[%emt 0:00:47][%csl Gg5][%cal Rd3h7] [#]} Rxh4 {[%emt 0:00:50]} 24. d6 {[%emt 0:00:49]} cxd6 {[%emt 0:02:08]} 25. Nd5 {[%emt 0:00:07]} Qe8 {[%emt 0:05:13]} 26. Rh1 {[%emt 0:08:30]} Qh5 {[%emt 0:00:05]} 27. Rxh4 {[%emt 0:00:38][%mdl 64] [#] Deflection} Qxh4 {[%emt 0:00:06]} 28. Qg6 {[%emt 0:00:45] Qe8+ would kill now.} Bd7 {[%emt 0:09:45] Prevents Qe8+.} (28... Qh6 $2 29. Qe8+ Bf8 30. f4) (28... Be6 $18 29. Nxe6 Qh6+ 30. Qxh6+ Bxh6+ 31. Kb1 Kg8) 29. Nf7+ {[%emt 0:03:37] Pair of Knights!} Kg8 {[%emt 0:00:04]} 30. Rg1 {[%emt 0:01:27][%csl Gg1][%cal Rg6g7]} Qc4+ {[%emt 0:00:11]} 31. Kb1 {[%emt 0:00:21][%csl Gg1][%cal Rg6g7]} Bf5+ {[%emt 0:00:07]} 32. Qxf5 {[%emt 0:00:04]} Qxd5 {[%emt 0:00:06]} 33. Nh6+ {[%emt 0:00:10]} Kh8 {[%emt 0:00:04]} 34. Qg6 {[%emt 0:00:28] White took control after the opening.  Weighted Error Value: White=0.21 (precise) /Black=0.83} 1-0